bitfinex/quotes_ETHUSD_20240816
["timestamp","ask_amount","ask_price","bid_price","bid_amount"]
[1723843009583,0.29213,2607.8,2607.0,0.1339145]
[1723843009783,0.55,2607.7,2607.0,0.1339145]
[1723843010775,0.55,2607.7,2607.0,3.1339145]
[1723843011273,0.55,2607.7,2607.0,0.1339145]
[1723843013182,2.3713,2607.6,2607.0,0.1339145]
[1723843013353,0.84213,2607.5,2607.0,0.1339145]
[1723843018666,0.29213,2607.8,2607.0,0.1339145]
[1723843018875,2.3713,2608.2,2607.2,6.13085]
[1723843019075,0.55,2608.0,2607.2,6.13085]
[1723843019378,2.3713,2608.2,2607.2,2.2954]
[1723843019379,0.55,2608.1,2607.2,2.2954]
[1723843019692,0.29213,2608.0,2607.2,3.0]
[1723843019896,0.55,2607.9,2607.2,3.0]
[1723843020100,0.7,2607.4,2607.0,0.1339145]
[1723843020310,18.54131,2607.1,2607.0,0.1339145]
[1723843020665,18.54131,2607.1,2606.7,0.04]
[1723843020666,10.74354,2606.8,2606.7,0.04]
[1723843020815,14.57966,2606.8,2606.7,0.04]
[1723843020986,15.12966,2606.8,2606.7,0.04]
[1723843021186,14.29354,2606.8,2606.7,0.04]
[1723843021390,14.29354,2606.8,2605.1,3.963]
[1723843021391,6.20847,2606.1,2605.1,3.963]
[1723843021593,2.3713,2606.1,2605.1,3.963]
[1723843021773,2.3713,2606.1,2605.1,7.80148]
[1723843021979,0.55,2606.0,2605.3,3.83831]
[1723843022229,0.55,2606.0,2605.1,3.83855]
[1723843022533,0.55,2606.2,2605.3,3.83824]
[1723843022677,0.55,2606.3,2605.3,3.83824]
[1723843022877,0.55,2606.3,2605.6,3.83785]
[1723843022878,1.617159,2606.3,2605.6,3.83785]
[1723843023081,0.55,2606.3,2605.6,6.2672]
[1723843023304,0.55,2606.3,2605.6,6.26718]
[1723843023723,0.55,2606.3,2605.6,6.26716]
[1723843023893,2.2982,2606.8,2605.8,3.83746]
[1723843024220,0.613421,2606.7,2606.0,3.83729]
[1723843024422,2.2982,2606.8,2606.0,3.83729]
[1723843025418,2.2982,2606.8,2605.9,3.83742]
[1723843025630,0.22982,2606.7,2605.9,3.83742]
[1723843025999,0.55,2606.6,2605.9,3.83742]
[1723843026198,0.55,2606.6,2605.8,3.83746]
[1723843026387,0.55,2606.6,2605.8,3.8375]
[1723843026993,0.55,2606.6,2606.0,3.8372]
[1723843027719,0.55,2606.7,2606.0,3.8372]
[1723843027933,0.55,2606.7,2606.1,3.83711]
[1723843028106,7.46,2607.0,2606.3,7.67353]
[1723843028295,7.46,2607.0,2606.3,3.83676]
[1723843028494,7.46,2607.0,2606.4,3.8367]
[1723843028699,2.2547,2607.1,2606.4,3.8367]
[1723843028952,2.2547,2607.1,2606.3,3.83676]
[1723843029239,3.83593,2607.0,2606.2,3.0]
[1723843029530,3.83593,2607.0,2606.0,3.0]
[1723843029531,4.0614,2607.0,2606.0,3.0]
[1723843029732,0.55,2606.9,2606.0,3.0]
[1723843029933,0.46114,2606.8,2606.0,3.0]
[1723843030107,0.55,2606.7,2606.0,3.0]
[1723843031299,0.55,2606.7,2605.8,7.32]
[1723843031300,2.2547,2606.6,2605.8,7.32]
[1723843031502,2.2547,2606.6,2604.8,0.5022503]
[1723843031503,2.2547,2606.2,2605.2,3.83847]
[1723843032044,0.55,2606.1,2605.2,3.83847]
[1723843032741,0.55,2606.1,2605.2,7.67684]
[1723843033032,0.55,2606.1,2605.2,3.83837]
[1723843033207,4.11785,2606.0,2605.0,0.005]
[1723843033408,0.55,2605.9,2605.0,0.005]
[1723843034238,0.55,2605.9,2605.1,3.83858]
[1723843034599,0.55,2605.9,2605.3,3.83829]
[1723843035143,0.55,2605.9,2605.4,3.83818]
[1723843035439,2.2547,2606.2,2605.5,3.83789]
[1723843035609,2.2547,2606.2,2605.3,10.24536]
[1723843035810,2.2547,2606.2,2605.4,3.0]
[1723843036602,0.55,2606.1,2605.4,3.0]
[1723843036904,0.55,2606.1,2605.4,6.83809]
[1723843037103,0.55,2606.1,2605.6,3.83784]
[1723843037308,0.55,2606.2,2605.6,3.83784]
[1723843037548,0.55,2606.2,2605.7,3.83769]
[1723843037704,7.46,2606.3,2605.7,3.83769]
[1723843037903,7.46,2606.3,2605.8,3.83758]
[1723843038134,7.46,2606.3,2605.7,3.83769]
[1723843038135,2.2547,2606.4,2605.7,3.83765]
[1723843038332,2.508217,2606.4,2605.7,3.83765]
[1723843038607,2.508217,2606.4,2605.5,3.83795]
[1723843038608,2.2547,2606.4,2605.5,3.83795]
[1723843038833,0.55,2606.3,2605.6,3.0]
[1723843039036,0.28047,2606.2,2605.6,3.0]
[1723843040461,0.55,2606.1,2605.4,3.0]
[1723843041829,0.28047,2606.2,2605.6,3.83782]
[1723843042162,2.2547,2606.4,2605.6,3.83782]
[1723843042337,0.55,2606.3,2605.6,3.83782]
[1723843042533,0.55,2606.3,2605.4,10.67619]
[1723843042780,0.55,2606.3,2605.5,3.838]
[1723843042949,1.242176,2606.3,2605.6,3.0]
[1723843043284,0.55,2606.3,2605.6,3.0]
[1723843043464,0.55,2606.3,2605.5,3.0]
[1723843043852,0.55,2606.3,2605.0,2.4491]
[1723843043853,2.302,2606.0,2605.0,2.4491]
[1723843044054,3.83745,2605.9,2605.0,0.005]
[1723843044364,2.302,2605.8,2605.0,0.005]
[1723843044564,0.55,2605.7,2605.1,3.83854]
[1723843044950,0.55,2605.7,2605.0,3.84374]
[1723843044951,0.55,2605.7,2605.2,3.83845]
[1723843045773,2.302,2605.8,2605.4,3.83806]
[1723843045975,2.302,2606.1,2605.4,3.83806]
[1723843046174,2.852,2606.1,2605.4,3.83806]
[1723843046480,2.852,2606.1,2605.3,3.8383]
[1723843046481,2.852,2606.1,2605.5,3.83803]
[1723843046830,2.852,2606.1,2605.5,3.83795]
[1723843047487,2.852,2606.1,2605.6,3.83784]
[1723843048473,2.852,2606.1,2605.6,7.67563]
[1723843048638,2.852,2606.1,2605.6,3.83779]
[1723843048837,7.46,2606.4,2605.6,3.83779]
[1723843048838,9.9486,2606.4,2605.6,3.83778]
[1723843049285,0.55,2606.3,2605.6,3.83778]
[1723843049848,0.55,2606.3,2605.6,3.83781]
[1723843050717,7.46,2606.4,2606.2,3.83697]
[1723843050855,7.46,2607.2,2606.2,3.83697]
[1723843051065,3.2346,2607.1,2606.5,3.83656]
[1723843051993,3.2346,2607.1,2606.5,7.67304]
[1723843052141,3.2346,2607.1,2606.6,3.8364]
[1723843052739,3.2346,2607.1,2606.6,3.83633]
[1723843053394,3.2346,2607.1,2606.6,7.67267]
[1723843053705,3.2346,2607.1,2606.6,3.83633]
[1723843053996,0.78664875,2607.3,2606.7,3.83618]
[1723843054148,0.55,2607.2,2606.7,3.83618]
[1723843054338,0.55,2607.3,2606.7,3.83618]
[1723843054746,0.55,2607.3,2606.6,3.83633]
[1723843054948,0.55,2607.3,2606.6,7.67264]
[1723843055552,0.55,2607.3,2606.7,3.83622]
[1723843055862,0.55,2607.3,2606.5,6.3012]
[1723843056179,0.55,2607.3,2606.8,3.83603]
[1723843056385,0.78664875,2607.6,2607.0,3.8358]
[1723843056556,0.55,2607.5,2607.0,3.8358]
[1723843056751,3.27524875,2607.7,2607.0,3.83574]
[1723843056987,3.27524875,2607.7,2607.2,3.83552]
[1723843057168,1.19214896,2607.6,2607.2,3.83552]
[1723843057351,1.19214896,2607.6,2607.1,3.83558]
[1723843057551,1.19214896,2607.6,2607.2,3.83548]
[1723843058064,1.19214896,2607.6,2607.1,3.83558]
[1723843058249,2.4886,2607.7,2606.8,3.963]
[1723843058446,2.4886,2607.7,2606.9,6.83585]
[1723843058693,3.27524875,2607.7,2606.9,3.83585]
[1723843058894,0.24886,2607.6,2607.0,3.0]
[1723843059095,2.4886,2607.5,2606.5,3.83655]
[1723843059396,2.4886,2607.3,2606.6,3.0]
[1723843059550,0.55,2607.2,2606.6,3.0]
[1723843061750,2.4886,2607.3,2606.9,3.83583]
[1723843062005,2.4886,2607.3,2606.7,3.83612]
[1723843062203,0.3145847,2607.2,2606.8,3.0]
[1723843062883,0.3145847,2607.2,2606.8,6.83611]
[1723843063083,2.4886,2607.3,2606.9,3.83596]
[1723843063252,2.4886,2607.3,2606.9,3.83589]
[1723843064256,2.4886,2607.3,2606.8,3.0]
[1723843065402,2.4886,2607.3,2606.8,6.83603]
[1723843065575,2.4886,2607.3,2607.0,3.8358]
[1723843065902,3.33070875,2607.6,2607.0,3.8358]
[1723843066206,0.77217496,2607.5,2607.0,3.8358]
[1723843066557,0.78664875,2607.7,2607.2,3.83538]
[1723843066801,7.46,2607.8,2607.3,3.83528]
[1723843067893,7.46,2607.8,2607.4,3.8352]
[1723843068095,3.15214875,2607.9,2607.2,3.83545]
[1723843068261,1.33664875,2607.8,2607.2,3.83545]
[1723843068460,1.03883896,2607.8,2607.2,3.83545]
[1723843068695,1.82548771,2607.8,2607.2,3.83545]
[1723843068902,0.55,2607.8,2607.2,3.83542]
[1723843069103,0.55,2607.8,2607.3,3.83537]
[1723843069561,0.55,2607.8,2605.5,5.44369838]
[1723843069562,3.83532,2607.4,2606.3,3.83673]
[1723843069761,3.83532,2607.4,2606.2,11.15689]
[1723843069762,3.02892981,2607.3,2606.2,11.15689]
[1723843069975,2.3655,2607.1,2606.2,11.15689]
[1723843070182,2.3655,2607.1,2606.3,3.83683]
[1723843070368,0.55,2607.0,2606.2,11.15689]
[1723843070809,0.55,2607.0,2606.2,14.9938]
[1723843071307,0.55,2607.0,2606.2,11.15689]
[1723843071924,0.55,2607.0,2606.2,14.99377]
[1723843072426,0.55,2607.0,2606.3,3.83682]
[1723843072565,0.55,2607.0,2606.4,3.0]
[1723843075516,0.55,2607.0,2606.3,3.0]
[1723843075806,0.99672386,2607.0,2606.3,3.0]
[1723843076389,0.99672386,2607.0,2605.9,3.963]
[1723843076566,2.3655,2606.8,2605.8,7.67499]
[1723843076766,2.3655,2606.8,2605.8,3.83749]
[1723843076767,0.66334734,2606.7,2605.8,3.83749]
[1723843077014,1.4337787,2606.7,2605.8,3.83749]
[1723843077218,2.3655,2606.6,2605.6,11.63855]
[1723843077402,0.55,2606.5,2605.6,7.80076]
[1723843077603,0.92992787,2606.5,2605.8,3.83759]
[1723843077808,0.78664875,2606.8,2606.2,3.83691]
[1723843078005,2.3655,2606.9,2606.3,0.383691]
[1723843078182,2.3655,2606.9,2606.1,3.83714]
[1723843078385,0.23655,2606.8,2606.1,3.83714]
[1723843078693,0.23655,2606.8,2606.2,3.83692]
[1723843079016,2.3655,2606.9,2606.2,3.83692]
[1723843079223,0.55,2606.8,2606.2,7.67384]
[1723843079382,0.55,2606.8,2606.2,3.83692]
[1723843080518,0.55,2606.8,2606.3,3.83677]
[1723843081031,0.55,2606.8,2606.4,3.83669]
[1723843081519,2.3655,2606.9,2606.4,7.67332]
[1723843081743,0.78664875,2607.1,2606.4,3.83663]
[1723843081877,2.42713116,2607.1,2606.6,3.83639]
[1723843082084,3.14084875,2607.2,2606.6,3.83639]
[1723843082306,2.19089818,2607.1,2606.6,3.83639]
[1723843082585,2.97754693,2607.1,2606.6,3.83639]
[1723843082780,1.33664875,2607.1,2606.6,3.83639]
[1723843083239,0.55,2607.1,2606.6,3.83639]
[1723843083601,2.97762434,2607.1,2606.6,3.83639]
[1723843083783,1.33664875,2607.1,2606.6,3.83639]
[1723843083983,0.65828476,2607.0,2606.6,3.83639]
[1723843084291,0.65828476,2607.0,2606.4,3.83656]
[1723843084624,0.78664875,2606.8,2606.2,6.8369]
[1723843084826,2.3542,2606.9,2606.2,6.8369]
[1723843084827,3.69084875,2606.9,2606.3,3.0]
[1723843085025,2.97757517,2606.8,2606.3,3.0]
[1723843085189,1.64092642,2606.7,2606.2,3.8369]
[1723843085520,1.33664875,2606.8,2606.2,3.8369]
[1723843085707,0.65831742,2606.7,2606.2,3.8369]
[1723843085907,1.64106407,2606.7,2606.2,3.8369]
[1723843086087,1.44496617,2606.7,2606.2,3.8369]
[1723843086290,1.31348449,2606.8,2606.2,3.8369]
[1723843086291,2.10013324,2606.8,2606.2,3.8369]
[1723843086621,2.42809746,2606.7,2606.2,3.8369]
[1723843086825,2.10013324,2606.8,2606.2,3.8369]
[1723843087121,2.42794896,2606.7,2606.2,3.8369]
[1723843087484,3.31430184,2606.7,2606.2,3.8369]
[1723843087696,0.88635288,2606.7,2606.2,3.8369]
[1723843088109,1.67300163,2606.7,2606.0,14.15722]
[1723843088319,5.55589913,2606.6,2606.1,3.0]
[1723843088628,2.42899897,2606.5,2606.1,3.0]
[1723843088782,1.64235022,2606.5,2606.0,3.0]
[1723843088984,3.91354891,2606.6,2606.0,3.0]
[1723843089189,0.50997898,2606.5,2606.0,3.0]
[1723843089386,4.38676,2606.4,2605.4,3.83811]
[1723843089603,0.78664875,2606.1,2605.4,7.32]
[1723843089796,0.78664875,2605.9,2605.4,7.32]
[1723843090238,0.78664875,2605.9,2605.3,3.963]
[1723843090538,0.78664875,2605.9,2605.1,3.83851]
[1723843090539,2.9046,2605.8,2605.1,3.83851]
[1723843090749,2.9046,2605.8,2605.2,3.83846]
[1723843091041,2.9046,2605.8,2605.1,3.83851]
[1723843091242,2.9046,2605.8,2605.0,7.80674]
[1723843091413,2.35668467,2605.7,2605.0,7.80674]
[1723843091761,1.16766026,2605.6,2605.0,3.84374]
[1723843092054,0.55,2605.6,2605.0,3.84374]
[1723843092770,0.55,2605.6,2605.1,3.0]
[1723843092924,3.14124875,2605.8,2605.2,3.83838]
[1723843093340,0.61729054,2605.7,2605.2,3.83838]
[1723843093510,3.14124875,2605.8,2605.2,3.83838]
[1723843093714,2.3546,2605.8,2605.2,3.83838]
[1723843093925,2.3546,2605.8,2605.3,3.83832]
[1723843094560,0.78664875,2606.0,2605.5,3.83801]
[1723843094859,3.14124875,2606.1,2605.6,3.83788]
[1723843095153,0.78664875,2606.3,2605.7,3.83773]
[1723843095372,0.78664875,2606.3,2605.7,3.83765]
[1723843095373,1.40381174,2606.3,2605.7,3.83765]
[1723843095663,0.61716793,2606.2,2605.7,3.83765]
[1723843095956,0.78664875,2606.3,2605.8,3.83755]
[1723843096139,3.54084088,2606.4,2605.7,3.83765]
[1723843096140,2.35605189,2606.2,2605.7,3.83765]
[1723843096355,3.14124875,2606.4,2605.7,3.83765]
[1723843096515,1.16713779,2606.3,2605.7,3.83765]
[1723843096721,0.55,2606.3,2605.7,3.83765]
[1723843096948,2.90602616,2606.3,2605.8,3.83756]
[1723843097221,3.14124875,2606.4,2605.8,3.83758]
[1723843097443,2.35601654,2606.3,2605.8,3.83758]
[1723843098317,3.14124875,2606.4,2605.7,7.67528]
[1723843098533,1.56866462,2606.3,2605.7,7.67528]
[1723843098765,0.61685001,2606.2,2605.8,3.83758]
[1723843098962,3.14124875,2606.4,2605.8,3.83758]
[1723843099168,0.61684465,2606.3,2605.8,3.83758]
[1723843099359,3.14124875,2606.4,2605.8,3.83758]
[1723843099766,0.61679534,2606.3,2605.8,3.83758]
[1723843099967,3.14124875,2606.4,2605.8,3.83758]
[1723843100144,2.35523254,2606.3,2605.8,3.83758]
[1723843100680,2.35523254,2606.3,2605.7,7.67528]
[1723843100883,3.14124875,2606.4,2605.7,3.83762]
[1723843101183,0.61674355,2606.3,2605.7,3.83762]
[1723843101357,0.61674355,2606.3,2605.5,7.80095]
[1723843101358,0.55,2606.2,2605.5,7.80095]
[1723843101553,0.55,2606.2,2605.6,3.0]
[1723843101554,1.54247025,2606.2,2605.6,3.0]
[1723843101758,0.92579923,2606.2,2605.6,3.0]
[1723843101963,0.55,2606.2,2605.7,3.83771]
[1723843102170,0.55,2606.2,2605.7,3.83766]
[1723843102493,0.78664875,2606.3,2605.7,3.83765]
[1723843102696,2.35503833,2606.3,2605.7,3.83765]
[1723843103182,2.35503833,2606.3,2605.6,3.0]
[1723843103183,0.78664875,2606.5,2606.0,3.83729]
[1723843103388,2.35622218,2606.4,2605.9,3.83744]
[1723843103586,0.78664875,2606.5,2605.9,3.83744]
[1723843103959,2.35621083,2606.4,2605.9,3.83744]
[1723843104292,1.56984374,2606.3,2605.9,3.83744]
[1723843104495,0.78664875,2606.3,2605.9,3.83744]
[1723843104700,0.78664875,2606.4,2605.9,3.83744]
[1723843104904,0.78664875,2606.5,2605.9,3.83744]
[1723843105496,0.78664875,2606.4,2605.9,3.83744]
[1723843105868,0.78664875,2606.4,2605.8,6.16419]
[1723843106157,0.78664875,2606.4,2605.8,6.16411]
[1723843106359,2.35642759,2606.4,2605.8,6.16411]
[1723843106574,0.78664875,2606.4,2605.8,6.16405]
[1723843106747,0.78664875,2606.5,2605.9,3.83737]
[1723843106950,2.35664456,2606.4,2605.8,6.16405]
[1723843107183,0.61737118,2606.3,2605.8,6.16405]
[1723843107566,1.21199673,2606.4,2605.8,6.16405]
[1723843107753,0.61729106,2606.3,2605.8,6.16405]
[1723843107956,1.21199673,2606.4,2605.8,6.16405]
[1723843108177,1.56948548,2606.3,2605.8,10.00156]
[1723843108387,1.21199673,2606.4,2605.8,10.00156]
[1723843108584,2.35636956,2606.3,2605.8,10.00156]
[1723843108801,0.78664875,2606.3,2605.8,10.00155]
[1723843108980,0.78664875,2606.4,2605.8,3.83745]
[1723843109187,0.78664875,2606.3,2605.8,3.83745]
[1723843109360,2.35639726,2606.3,2605.8,3.83745]
[1723843109694,0.78664875,2606.3,2605.8,3.83745]
[1723843109896,0.55,2606.2,2605.6,3.0]
[1723843110097,0.36524488,2606.1,2605.6,3.0]
[1723843110457,1.15189363,2606.1,2605.6,3.0]
[1723843110657,0.36524488,2606.1,2605.6,3.0]
[1723843112402,1.33664875,2606.2,2605.6,6.83788]
[1723843113302,2.35806383,2606.1,2605.6,3.0]
[1723843113500,0.78664875,2606.1,2605.6,3.0]
[1723843113709,0.78664875,2606.1,2605.7,3.83771]
[1723843113867,0.61794332,2606.1,2605.8,3.0]
[1723843114067,1.33664875,2606.2,2605.8,3.0]
[1723843114273,0.61788471,2606.1,2605.8,3.0]
[1723843114471,2.90807158,2606.2,2605.8,3.0]
[1723843114698,0.61794811,2606.1,2605.8,3.0]
[1723843115122,1.33664875,2606.2,2605.8,3.0]
[1723843115328,0.61823316,2606.1,2605.8,3.0]
[1723843115694,0.78664875,2606.0,2605.7,3.0]
[1723843116427,1.73193316,2606.1,2605.4,3.83817]
[1723843116428,2.3587888,2605.9,2605.4,3.83809]
[1723843116627,0.61821537,2605.8,2605.5,3.0]
[1723843116792,0.78664875,2605.9,2605.5,3.0]
[1723843116991,0.78664875,2605.8,2605.3,3.0]
[1723843117190,2.35897688,2605.8,2605.3,3.0]
[1723843117519,0.61826105,2605.7,2605.3,3.0]
[1723843117829,0.78664875,2605.8,2605.3,3.0]
[1723843118637,2.25878512,2605.8,2605.3,3.0]
[1723843118804,0.78664875,2605.9,2605.4,3.83817]
[1723843119606,2.25883096,2605.9,2605.4,3.83817]
[1723843119807,0.78664875,2605.9,2605.5,3.83796]
[1723843120129,2.12542507,2605.8,2605.4,3.83806]
[1723843120320,0.78664875,2605.8,2605.5,3.83802]
[1723843120527,0.78664875,2605.8,2605.6,3.83787]
[1723843120697,0.78664875,2605.9,2605.5,3.83803]
[1723843121438,0.78664875,2605.9,2605.6,3.83785]
[1723843122228,0.78664875,2605.8,2605.5,3.8379]
[1723843122459,0.78664875,2605.9,2605.5,7.67585]
[1723843122628,0.78664875,2605.8,2605.5,3.8379]
[1723843123159,4.40257255,2605.8,2605.3,3.0]
[1723843123314,2.67577255,2605.7,2605.3,3.0]
[1723843123509,1.33664875,2605.7,2605.3,3.0]
[1723843124255,0.48484469,2605.6,2605.2,3.0]
[1723843124457,0.55,2605.7,2605.2,3.0]
[1723843124830,0.55,2605.7,2605.3,3.83832]
[1723843125046,2.67561855,2605.7,2605.4,3.0]
[1723843125231,1.33664875,2605.7,2605.4,3.0]
[1723843125750,0.55,2605.7,2605.4,3.0]
[1723843126156,2.67567364,2605.7,2605.4,3.0]
[1723843126360,2.12567364,2605.6,2605.3,3.0]
[1723843126716,1.73624088,2605.7,2605.3,3.0]
[1723843126717,1.33664875,2605.7,2605.3,3.0]
[1723843127160,0.48483856,2605.6,2605.3,3.0]
[1723843127368,0.78664875,2605.8,2605.4,3.83809]
[1723843127525,0.48487761,2605.7,2605.4,3.83809]
[1723843127727,0.78664875,2605.7,2605.4,3.83809]
[1723843128335,2.12580398,2605.7,2605.4,3.83809]
[1723843128567,0.48487761,2605.6,2605.4,3.83809]
[1723843128768,0.78664875,2605.6,2605.4,3.83809]
[1723843130173,2.12674494,2605.6,2605.4,3.83809]
[1723843130322,2.12708232,2605.5,2605.3,6.83832]
[1723843130635,0.78664875,2605.5,2605.3,10.67657]
[1723843130834,1.18624088,2605.7,2605.3,10.67657]
[1723843130835,0.78664875,2605.6,2605.3,10.67657]
[1723843131427,1.67164414,2605.7,2605.4,3.83818]
[1723843131428,2.12723647,2605.5,2605.4,3.83818]
[1723843131636,1.64183321,2605.5,2605.4,6.83818]
[1723843131936,0.48540326,2605.5,2605.4,6.83818]
[1723843132319,2.12748012,2605.5,2605.4,6.83818]
[1723843132720,0.48555032,2605.5,2605.4,6.83818]
[1723843132923,0.78664875,2605.6,2605.4,6.83818]
[1723843133443,2.12772847,2605.6,2605.4,6.83818]
[1723843133595,0.48557963,2605.5,2605.4,6.83818]
[1723843133796,0.78664875,2605.5,2605.4,3.0]
[1723843134454,1.20275446,2605.5,2605.4,3.0]
[1723843134655,0.48557963,2605.5,2605.4,3.0]
[1723843134855,1.27222838,2605.6,2605.4,6.83818]
[1723843135056,0.48557963,2605.5,2605.4,6.83818]
[1723843135256,1.27222838,2605.6,2605.4,6.83818]
[1723843135480,2.12814761,2605.5,2605.4,6.83818]
[1723843135696,1.34149886,2605.5,2605.4,6.83818]
[1723843135906,0.48557963,2605.5,2605.4,6.83818]
[1723843136201,0.78664875,2605.5,2605.4,3.0]
[1723843136500,1.69417045,2605.5,2605.3,6.83831]
[1723843136664,1.34135815,2605.4,2605.3,6.83831]
[1723843136853,1.27810675,2605.5,2605.3,6.83831]
[1723843137057,0.79252712,2605.5,2605.3,6.83824]
[1723843137511,1.27828078,2605.5,2605.3,3.0]
[1723843137727,0.48575366,2605.4,2605.3,3.0]
[1723843138014,2.13401983,2605.4,2605.1,3.83861]
[1723843138317,0.79252712,2605.4,2605.1,3.83861]
[1723843138525,1.27830129,2605.4,2605.1,3.83861]
[1723843138685,0.79252712,2605.3,2605.1,3.83861]
[1723843139075,1.27830129,2605.3,2605.1,3.83861]
[1723843139387,0.79252712,2605.3,2605.1,3.83861]
[1723843139918,0.79252712,2605.4,2605.1,3.83861]
[1723843140122,0.41597627,2605.3,2605.2,3.83847]
[1723843140272,0.4201804,2605.3,2605.2,3.83847]
[1723843140472,1.59910527,2605.3,2605.2,3.83847]
[1723843140674,0.42017446,2605.3,2605.1,3.83861]
[1723843140960,0.79252712,2605.4,2605.1,3.83861]
[1723843141474,1.9947784,2605.4,2605.1,3.83861]
[1723843141674,0.38747904,2605.3,2605.1,3.83861]
[1723843142013,0.79252712,2605.4,2605.2,3.83845]
[1723843142390,0.79252712,2605.3,2605.2,3.83845]
[1723843142596,1.96205072,2605.3,2605.2,3.83845]
[1723843142988,0.38746598,2605.3,2605.2,3.83845]
[1723843143415,0.79252712,2605.4,2605.2,3.83845]
[1723843143712,0.79252712,2605.3,2605.2,3.83845]
[1723843143918,0.79252712,2605.3,2605.2,5.49545]
[1723843144473,1.96195555,2605.3,2605.2,1.657]
[1723843144717,1.57453553,2605.3,2605.2,1.657]
[1723843144917,1.16942843,2605.3,2605.2,1.657]
[1723843145233,0.78200841,2605.3,2605.2,1.657]
[1723843146091,0.79252712,2605.3,2605.2,1.657]
[1723843146292,1.96189706,2605.3,2605.1,3.0]
[1723843146590,0.79252712,2605.4,2605.2,1.657]
[1723843147642,1.0291476,2605.4,2605.0,0.005]
[1723843147841,1.0291476,2605.4,2605.1,1.657]
[1723843147842,0.79252712,2605.2,2605.1,1.657]
[1723843148127,2.67618912,2605.2,2605.1,1.657]
[1723843148332,3.06362591,2605.2,2605.1,1.657]
[1723843148647,3.06335738,2605.2,2605.1,1.657]
[1723843148792,2.27083026,2605.2,2605.1,1.657]
[1723843149129,3.45707114,2605.2,2605.1,1.657]
[1723843149331,2.66090711,2605.1,2604.3,0.1289145]
[1723843149539,3.50314183,2604.4,2604.3,0.1289145]
[1723843149692,6.59581372,2604.4,2604.3,0.1289145]
[1723843149891,6.7496501,2604.4,2604.3,0.1289145]
[1723843150092,3.8844501,2604.4,2604.3,0.1289145]
[1723843150342,3.48438101,2604.4,2604.3,0.1289145]
[1723843150635,5.3433539,2604.4,2604.3,0.1289145]
[1723843150841,8.20685085,2604.4,2604.3,0.1289145]
[1723843151193,12.59024744,2604.4,2604.3,0.1289145]
[1723843151519,15.56606867,2604.4,2604.3,0.1289145]
[1723843151692,19.22700968,2604.4,2604.3,0.1289145]
[1723843151891,17.57000968,2604.4,2604.3,0.1289145]
[1723843152113,10.06941867,2604.4,2604.3,0.1289145]
[1723843152342,15.88478335,2604.4,2604.3,0.1289145]
[1723843152542,15.88478335,2604.4,2604.3,0.03637726]
[1723843152543,15.19568444,2604.4,2604.3,0.03637726]
[1723843152768,14.03601325,2604.4,2604.3,0.03637726]
[1723843152970,2.3152,2604.0,2602.9,10.20675]
[1723843153466,1.45385874,2603.9,2602.9,10.20675]
[1723843153675,1.33950395,2603.9,2603.0,3.0]
[1723843153842,1.33950395,2603.9,2602.7,4.84211]
[1723843153843,0.78950395,2603.6,2602.7,1.0]
[1723843154033,0.78950395,2603.6,2602.7,1.484211]
[1723843154231,4.39099,2603.5,2602.7,1.484211]
[1723843154547,0.55,2603.5,2602.7,1.484211]
[1723843154742,0.55,2603.5,2602.8,0.3866111]
[1723843154941,0.55,2603.7,2602.8,0.3866111]
[1723843155565,0.55,2603.7,2602.8,3.3866111]
[1723843156571,0.55,2603.7,2602.9,3.84185]
[1723843156771,0.81461835,2604.1,2603.1,2.3819]
[1723843156971,0.81461835,2604.1,2603.3,7.82417]
[1723843156972,0.0251144,2604.1,2603.3,7.82417]
[1723843157274,0.0251144,2604.1,2603.5,3.84094]
[1723843157443,0.0251144,2604.1,2603.7,3.84059]
[1723843157651,0.0251144,2604.1,2603.8,6.84053]
[1723843157859,0.0251144,2604.1,2603.8,3.52081661]
[1723843158154,0.0251144,2604.1,2603.9,3.84031]
[1723843158675,2.3152,2604.6,2603.9,3.84031]
[1723843159025,2.3152,2604.6,2603.8,3.52081661]
[1723843159670,2.3152,2604.6,2603.8,7.36125661]
[1723843159884,2.3152,2604.6,2603.9,0.3866111]
[1723843160089,2.3152,2604.6,2603.9,4.2269811]
[1723843160243,2.3152,2604.6,2604.0,3.0]
[1723843161778,0.55,2604.5,2604.0,3.84023]
[1723843162294,2.2529,2604.9,2604.1,6.21198]
[1723843162497,2.2529,2604.9,2604.2,3.83985]
[1723843163041,2.2529,2604.9,2604.1,6.21189]
[1723843163943,7.46,2605.1,2604.3,3.83966]
[1723843164173,7.46,2605.1,2604.5,2.3719]
[1723843164490,0.746,2605.0,2604.5,2.3719]
[1723843164661,0.746,2605.0,2604.4,3.0]
[1723843165089,0.746,2605.0,2604.3,9.21162]
[1723843166103,0.55,2604.9,2604.3,9.21162]
[1723843166397,0.55,2604.9,2604.3,13.05132]
[1723843166601,0.55,2604.9,2604.4,3.83964]
[1723843166757,0.55,2604.9,2604.5,3.0]
[1723843167105,0.55,2604.9,2604.5,6.83948]
[1723843167508,7.46,2605.1,2604.6,3.83927]
[1723843167798,0.55,2605.0,2604.5,6.83941]
[1723843168566,0.55,2605.0,2604.5,10.6788]
[1723843168966,0.55,2605.0,2604.6,3.83932]
[1723843174571,0.55,2605.0,2604.5,6.83939]
[1723843174799,1.37420386,2605.0,2604.5,6.83939]
[1723843177181,1.37420386,2605.0,2604.5,10.67882]
[1723843177399,1.37420386,2605.0,2604.5,10.67881]
[1723843177819,1.37420386,2605.0,2604.5,6.83939]